bitfinex/quotes_ETHUSD_20250426
["timestamp","ask_amount","ask_price","bid_price","bid_amount"]
[1745683205857,6.77603253,1802.3,1802.1,0.1]
[1745683206058,6.22795102,1802.2,1802.1,0.1]
[1745683206359,0.6791773,1802.2,1802.1,0.1]
[1745683206610,3.1409101,1802.3,1802.1,0.1]
[1745683206895,5.54877372,1802.2,1802.1,0.1]
[1745683207066,6.4177421,1802.2,1802.1,0.1]
[1745683207794,29.9920421,1802.2,1802.1,0.1]
[1745683208365,24.44326838,1802.2,1802.1,0.1]
[1745683208716,22.749,1802.2,1802.1,0.1]
[1745683208854,22.749,1802.2,1802.1,5.64908162]
[1745683209054,21.39,1802.2,1802.1,6.42298162]
[1745683209289,16.659,1802.2,1802.1,6.42298162]
[1745683209509,21.39,1802.2,1802.1,6.42298162]
[1745683209653,16.659,1802.2,1802.1,7.6202163]
[1745683209854,6.09,1802.9,1802.6,6.32138659]
[1745683210169,10.27806878,1802.8,1802.3,5.54822825]
[1745683210373,0.6791773,1802.5,1802.2,0.7739]
[1745683210574,4.731,1802.4,1802.2,0.7739]
[1745683210807,4.731,1802.4,1802.1,6.84616095]
[1745683210808,4.731,1802.4,1802.1,0.1]
[1745683211015,7.5262125,1802.3,1802.1,0.1]
[1745683211335,0.6791773,1802.3,1802.1,0.1]
[1745683211835,0.6791773,1802.3,1802.1,5.64907187]
[1745683212038,0.6791773,1802.3,1802.1,0.1]
[1745683212397,6.22768964,1802.3,1802.1,0.1]
[1745683212828,11.77644101,1802.3,1802.1,0.1]
[1745683213126,7.87843374,1802.3,1802.1,0.1]
[1745683213433,12.46407372,1802.2,1802.1,0.1]
[1745683213590,6.9153,1802.2,1802.1,0.1]
[1745683214021,12.46407372,1802.2,1802.1,0.1]
[1745683214218,6.9153,1802.2,1802.1,0.1]
[1745683214551,13.19119097,1802.2,1802.1,0.1]
[1745683214751,7.64241725,1802.2,1802.1,0.1]
[1745683215249,13.19119097,1802.2,1802.1,0.1]
[1745683215553,7.64241725,1802.2,1802.1,0.1]
[1745683215715,6.81711725,1802.2,1802.1,0.1]
[1745683216718,10.821,1802.2,1802.1,0.1]
[1745683219859,11.5001773,1802.2,1802.1,0.1]
[1745683220560,17.04895102,1802.2,1802.1,0.1]
[1745683220863,17.83275102,1802.2,1802.1,0.1]
[1745683221961,12.2839773,1802.2,1802.1,0.1]
[1745683222169,17.83275102,1802.2,1802.1,0.1]
[1745683222855,12.2839773,1802.2,1802.1,0.1]
[1745683223050,11.5001773,1802.2,1802.1,0.1]
[1745683223667,10.821,1802.2,1802.1,0.1]
[1745683224165,10.821,1802.2,1802.1,5.64908162]
[1745683224363,6.7691773,1802.4,1802.1,5.64908162]
[1745683224567,4.732,1802.3,1802.1,0.1]
[1745683225129,10.280622,1802.3,1802.1,0.1]
[1745683225656,0.6791773,1802.2,1802.1,0.1]
[1745683226028,5.4111773,1802.3,1802.1,0.1]
[1745683226424,10.95982586,1802.3,1802.1,0.1]
[1745683226974,5.4111773,1802.3,1802.1,0.1]
[1745683227352,22.0751773,1802.3,1802.1,0.1]
[1745683229474,28.1651773,1802.3,1802.1,0.1]
[1745683229680,28.1651773,1802.3,1802.1,5.64904643]
[1745683229849,28.1651773,1802.3,1802.1,0.1]
[1745683230952,28.1651773,1802.3,1802.1,5.64904839]
[1745683231168,28.1651773,1802.3,1802.2,5.54877372]
[1745683231785,27.486,1802.3,1802.2,0.64487737]
[1745683231945,27.486,1802.3,1802.2,5.54877372]
[1745683232146,21.396,1802.3,1802.2,5.54877372]
[1745683232947,21.396,1802.3,1802.2,6.06649121]
[1745683233298,21.396,1802.3,1802.2,6.86649121]
[1745683234188,21.395,1802.3,1802.2,6.86649121]
[1745683234426,21.395,1802.3,1802.2,8.11803117]
[1745683234683,4.731,1802.3,1802.2,8.11803117]
[1745683235467,4.731,1802.3,1802.2,0.51771749]
[1745683235673,5.4101773,1802.3,1802.2,0.51771749]
[1745683236281,5.4101773,1802.3,1802.1,0.1]
[1745683237184,10.95878913,1802.3,1802.1,0.1]
[1745683237747,5.4101773,1802.3,1802.1,0.1]
[1745683237959,7.11503188,1802.3,1802.1,0.1]
[1745683239182,4.731,1802.3,1802.1,0.1]
[1745683239379,4.731,1802.3,1802.1,0.8786]
[1745683240047,4.731,1802.3,1802.1,6.42765303]
[1745683240253,4.731,1802.3,1802.1,0.8786]
[1745683240584,4.731,1802.3,1802.1,0.1]
[1745683240844,7.0470936,1802.3,1802.1,0.1]
[1745683244495,0.7928,1802.2,1802.1,0.1]
[1745683245075,6.2029773,1802.3,1802.1,0.1]
[1745683245303,5.4101773,1802.3,1802.1,0.1]
[1745683246705,0.7928,1802.2,1802.1,0.1]
[1745683247201,6.8828,1802.2,1802.1,0.1]
[1745683248204,6.09,1802.2,1802.1,0.9206]
[1745683248604,6.09,1802.2,1802.1,6.98771187]
[1745683249104,6.09,1802.2,1802.1,1.43863025]
[1745683250712,6.09,1802.2,1802.1,0.9206]
[1745683250874,6.09,1802.2,1802.1,6.46968162]
[1745683251811,6.09,1802.2,1802.1,6.9879208]
[1745683252914,10.821,1802.3,1802.1,6.9879208]
[1745683253079,10.821,1802.3,1802.1,6.46968162]
[1745683253830,16.663,1802.4,1802.3,5.54846584]
[1745683254006,21.393,1802.4,1802.3,5.54846584]
[1745683254205,16.663,1802.4,1802.3,6.88724865]
[1745683254404,21.393,1802.4,1802.3,6.88724865]
[1745683259615,21.393,1802.4,1802.3,6.8869474]
[1745683259922,21.393,1802.4,1802.3,8.13051951]
[1745683260827,21.393,1802.4,1802.3,7.30991951]
[1745683261024,21.393,1802.4,1802.3,6.0663474]
[1745683262138,21.393,1802.4,1802.3,0.51788156]
[1745683262522,26.94115801,1802.4,1802.3,0.51788156]
[1745683262827,33.84315801,1802.4,1802.3,0.51788156]
[1745683262990,36.84315801,1802.4,1802.3,0.51788156]
[1745683263185,6.36077372,1802.2,1802.1,0.1]
[1745683263429,7.03995102,1802.2,1802.1,0.1]
[1745683263605,1.4911773,1802.2,1802.1,0.1]
[1745683263988,7.03995102,1802.2,1802.1,0.1]
[1745683264432,8.29880359,1802.2,1802.1,0.1]
[1745683266489,7.48680359,1802.2,1802.1,0.1]
[1745683266817,28.9125773,1802.4,1802.1,0.1]
[1745683267607,24.1825773,1802.4,1802.1,5.64892641]
[1745683267812,4.73,1802.3,1802.1,5.64892641]
[1745683268230,4.73,1802.3,1802.1,5.64886647]
[1745683268646,4.73,1802.3,1802.2,0.51898045]
[1745683269214,4.73,1802.3,1802.1,5.64886647]
[1745683271055,4.73,1802.3,1802.2,5.54877372]
[1745683271258,4.73,1802.3,1802.1,5.64892343]
[1745683272269,4.73,1802.3,1802.1,0.1]
[1745683272457,5.4804,1802.3,1802.1,0.1]
[1745683272632,11.02905849,1802.3,1802.1,0.1]
[1745683272961,6.22795102,1802.2,1802.1,0.1]
[1745683273570,12.31795102,1802.2,1802.1,0.1]
[1745683275371,16.11895102,1802.2,1802.1,0.1]
[1745683278566,15.31795102,1802.2,1802.1,0.1]
[1745683282033,16.11275102,1802.2,1802.1,0.1]
[1745683287192,5.55055803,1801.7,1801.4,0.7932]
[1745683287392,4.73,1801.6,1801.4,0.7932]
[1745683288070,4.73,1801.6,1801.1,5.60200983]
[1745683288071,12.52496421,1801.6,1801.2,0.7932]
[1745683288384,12.52496421,1801.6,1801.1,5.60211973]
[1745683288385,23.68279127,1801.5,1801.1,5.60211973]
[1745683288534,23.68279127,1801.5,1801.1,0.05]
[1745683289141,18.1317773,1801.5,1801.1,0.05]
[1745683289343,23.68272913,1801.5,1801.1,0.05]
[1745683289570,24.35562627,1801.5,1801.1,0.05]
[1745683289792,18.01807444,1801.5,1801.2,5.55161602]
[1745683290088,4.73,1801.4,1801.3,0.7932]
[1745683290302,16.666,1801.5,1801.4,5.55123792]
[1745683290761,16.666,1801.5,1801.4,6.86293624]
[1745683290762,21.396,1801.5,1801.4,6.86293624]
[1745683297192,4.73,1801.5,1801.4,6.86293624]
[1745683297393,4.73,1801.5,1801.4,8.10436334]
[1745683297822,22.738,1802.0,1801.9,5.54969754]
[1745683298314,27.468,1802.0,1801.9,5.54969754]
[1745683298520,27.468,1802.0,1801.8,6.31247403]
[1745683298704,27.468,1802.0,1801.8,5.54977403]
[1745683299305,27.468,1802.0,1801.7,5.5501667]
[1745683299306,28.2543,1802.0,1801.7,5.5501667]
[1745683299618,28.9334773,1802.0,1801.7,5.5501667]
[1745683300615,28.9334773,1802.0,1801.6,5.55040755]
[1745683300816,28.9334773,1802.0,1801.6,5.55038818]
[1745683301064,28.9334773,1802.0,1801.5,6.33426495]
[1745683301221,34.48289599,1802.0,1801.6,5.5504028]
[1745683301555,28.9334773,1802.0,1801.6,5.55038373]
[1745683302954,34.48286726,1802.0,1801.6,5.55038373]
[1745683303130,0.6791773,1801.8,1801.4,6.33457119]
[1745683303325,1.3020778,1801.8,1801.4,11.88566223]
[1745683303639,1.3020778,1801.8,1801.5,6.07033537]
[1745683303830,0.7987,1801.7,1801.5,6.07033537]
[1745683304042,4.729,1801.6,1801.5,5.55091735]
[1745683304974,4.729,1801.6,1801.5,6.07040839]
[1745683305760,4.729,1801.6,1801.5,6.85670839]
[1745683306673,4.729,1801.6,1801.5,6.07040839]
[1745683312340,4.729,1801.6,1801.5,0.51949104]
[1745683313195,11.44639166,1801.6,1801.5,0.51949104]
[1745683313650,5.89577,1801.6,1801.2,5.55162938]
[1745683313846,5.89577,1801.6,1801.3,0.51967018]
[1745683314077,0.6791773,1801.4,1801.3,0.51967018]
[1745683314283,0.6791773,1801.4,1801.1,0.05]
[1745683314579,6.14,1801.3,1801.1,0.05]
[1745683314780,4.729,1801.2,1801.1,0.05]
[1745683314939,4.729,1801.2,1801.1,0.56956851]
[1745683317590,4.729,1801.2,1801.1,0.05]
[1745683320686,4.729,1801.2,1801.1,6.42516256]
[1745683321186,4.729,1801.2,1801.1,5.60216256]
[1745683321487,4.729,1801.2,1801.1,6.12121628]
[1745683322555,4.729,1801.2,1801.1,0.56905372]
[1745683322894,4.729,1801.2,1801.1,0.05]
[1745683323470,4.729,1801.2,1801.1,0.04252805]
[1745683323668,4.729,1801.2,1801.1,5.59469061]
[1745683324591,4.729,1801.2,1801.1,6.11352952]
[1745683325695,22.81,1801.3,1801.2,5.55185431]
[1745683325860,22.81,1801.3,1801.2,6.30795431]
[1745683325861,27.54,1801.3,1801.2,6.30795431]
[1745683326193,27.54,1801.3,1801.2,6.82679322]
[1745683326798,22.81,1801.3,1801.2,8.0689416]
[1745683326967,27.54,1801.3,1801.2,8.7481189]
[1745683327171,27.54,1801.3,1801.2,8.0689416]
[1745683329163,21.4,1801.3,1801.2,8.0689416]
[1745683332711,4.73,1801.3,1801.2,8.0689416]
[1745683333003,4.73,1801.3,1801.2,11.0689416]
[1745683336624,6.14,1801.8,1801.4,0.7513]
[1745683336791,4.729,1801.7,1801.6,5.55062166]
[1745683336990,4.729,1801.7,1801.6,6.06946057]
[1745683340709,4.729,1801.7,1801.6,0.51883891]
[1745683341048,4.729,1801.7,1801.5,5.55076635]
[1745683341209,5.26981773,1801.7,1801.6,5.55062166]
[1745683343245,4.729,1801.7,1801.6,5.55062166]
[1745683343539,4.729,1801.7,1801.6,6.06952617]
[1745683345758,6.15,1801.8,1801.7,5.55031359]
[1745683345967,10.878,1801.8,1801.7,5.55031359]
[1745683346103,10.878,1801.8,1801.7,6.0692181]
[1745683348852,16.67,1801.9,1801.8,6.38210555]
[1745683349348,21.398,1801.9,1801.8,6.90101006]
[1745683351325,22.817,1802.3,1802.1,5.54881128]
[1745683351528,4.728,1802.2,1802.1,5.54881128]
[1745683351839,4.728,1802.2,1802.1,6.06771579]
[1745683361041,16.667,1802.3,1802.2,5.54877372]
[1745683361244,21.393,1802.3,1802.2,5.54877372]
[1745683364165,21.393,1802.3,1802.2,6.06701078]
[1745683364466,21.393,1802.3,1802.2,5.54877372]
[1745683365776,21.393,1802.3,1802.2,6.06698672]
[1745683366770,16.667,1802.3,1802.2,6.06698672]
[1745683366970,21.393,1802.3,1802.2,6.06698672]
[1745683367837,21.392,1802.3,1802.2,6.06698672]
[1745683368353,21.392,1802.3,1802.2,7.40160431]
[1745683370984,21.392,1802.3,1802.2,6.06698672]
[1745683371882,16.667,1802.3,1802.2,6.06698672]
[1745683372048,21.392,1802.3,1802.2,6.06698672]
[1745683372674,16.667,1802.3,1802.2,6.06698672]
[1745683372879,21.392,1802.3,1802.2,6.06698672]
[1745683378987,21.392,1802.3,1802.2,0.518213]
[1745683379286,21.392,1802.3,1802.2,6.06698672]
[1745683386893,4.725,1802.3,1802.2,6.06698672]
[1745683399182,20.57676584,1802.3,1802.2,0.518213]
[1745683399486,5.54982965,1801.9,1801.4,5.55293802]
[1745683399800,0.8308,1801.7,1801.4,5.55293802]
[1745683400000,0.8308,1801.7,1801.4,11.10396269]
[1745683400176,0.8308,1801.7,1801.5,6.07067827]
[1745683400580,1.38618,1801.7,1801.5,0.51986751]
[1745683400817,0.31169117,1801.6,1801.5,0.51986751]
[1745683401020,0.31169117,1801.6,1801.4,5.55295998]
[1745683401921,1.38618,1801.7,1801.4,5.55295998]
[1745683402219,1.38618,1801.7,1801.5,5.55090383]
[1745683402519,0.8308,1801.7,1801.5,5.55090383]
[1745683402715,0.8308,1801.7,1801.4,5.55294962]
[1745683404189,1.14196984,1801.7,1801.4,5.55294962]
[1745683404626,0.31116984,1801.7,1801.6,5.55062166]
[1745683405122,5.03416984,1801.8,1801.6,5.55062166]
[1745683405488,21.69916984,1801.8,1801.6,5.55062166]
[1745683405688,21.388,1801.8,1801.6,5.55062166]
[1745683409132,16.665,1801.8,1801.7,5.55031359]
[1745683409299,21.39,1801.8,1801.7,5.55031359]
[1745683410117,21.39,1801.8,1801.6,6.66058353]
[1745683410314,21.39,1801.8,1801.5,6.33298468]
[1745683410539,21.39,1801.8,1801.5,5.55078468]
[1745683411033,21.39,1801.8,1801.5,11.10146881]
[1745683411197,21.39,1801.8,1801.5,5.55068413]
[1745683412844,21.39,1801.8,1801.5,11.10137137]
[1745683413022,21.39,1801.8,1801.6,5.55043939]
[1745683413333,21.39,1801.8,1801.6,5.55035092]
[1745683413532,21.39,1801.8,1801.7,5.55031359]
[1745683413937,21.39,1801.8,1801.6,5.55046568]
[1745683415726,21.39,1801.8,1801.5,5.55077898]
[1745683416037,21.39,1801.8,1801.6,5.55050234]
[1745683418140,26.94013365,1801.8,1801.4,0.00185567]
[1745683418439,0.7795,1801.7,1801.4,0.00185567]
[1745683418738,4.725,1801.6,1801.4,0.00185567]
[1745683420143,4.725,1801.6,1801.5,5.55092978]
[1745683420312,4.725,1801.6,1801.4,5.55295301]
[1745683420826,4.725,1801.6,1801.5,5.55092978]
[1745683421171,4.725,1801.6,1801.4,5.55291084]
[1745683422915,4.725,1801.6,1801.4,1.1933885]
[1745683423140,4.725,1801.6,1801.4,5.55286099]
[1745683423335,4.723,1801.5,1801.4,5.55286099]
[1745683426752,16.665,1801.8,1801.4,5.55308373]
[1745683426916,4.723,1801.5,1801.4,5.55308373]
[1745683427233,4.723,1801.5,1801.4,6.81263485]
[1745683429153,16.665,1801.8,1801.6,5.55047234]
[1745683429346,4.723,1801.7,1801.6,5.55047234]
[1745683430545,5.03519228,1801.7,1801.6,5.55047234]
[1745683441363,5.78839228,1801.7,1801.4,11.10390007]
[1745683441567,5.78839228,1801.7,1801.5,5.55090527]
[1745683441873,5.78839228,1801.7,1801.5,5.55069598]
[1745683442166,5.78839228,1801.7,1801.5,11.10140761]
[1745683442379,0.31219228,1801.6,1801.5,5.55069598]
[1745683442875,0.31219228,1801.6,1801.5,5.54670126]
[1745683444073,0.83252294,1801.6,1801.5,5.54670126]
[1745683444770,0.83252294,1801.6,1801.4,11.10388243]
[1745683445464,0.83252294,1801.6,1801.4,5.55286527]
[1745683445769,5.4762,1801.7,1801.5,5.55092978]
[1745683446176,5.4762,1801.7,1801.4,11.10391171]
[1745683446467,5.4762,1801.7,1801.4,5.55286527]
[1745683446668,5.4762,1801.7,1801.5,5.55092171]
[1745683447061,0.31218701,1801.6,1801.5,5.55092171]
[1745683451992,5.03318701,1801.6,1801.5,5.55092171]
[1745683460214,4.721,1801.6,1801.5,5.55092171]
[1745683462614,5.03327346,1801.6,1801.5,5.55092171]
[1745683468302,5.55385494,1801.6,1801.5,5.55092171]
[1745683469117,5.03327346,1801.6,1801.5,5.55092171]
[1745683470818,5.55389776,1801.6,1801.5,5.55092171]
[1745683471211,0.83289776,1801.6,1801.5,5.55092171]
[1745683471408,5.55389776,1801.6,1801.5,5.55092171]
[1745683471919,5.2416243,1801.6,1801.5,5.55092171]
[1745683472118,4.721,1801.6,1801.5,5.55092171]
[1745683473373,22.755,1801.8,1801.6,5.55032773]
[1745683473573,4.721,1801.7,1801.6,5.55032773]
[1745683474314,5.03329891,1801.7,1801.6,5.55032773]
[1745683475912,0.31229891,1801.7,1801.6,5.55032773]
[1745683476117,5.03329891,1801.7,1801.6,5.55032773]
[1745683477817,0.31229891,1801.7,1801.6,5.55032773]
[1745683477986,5.03329891,1801.7,1801.6,7.43874202]
[1745683478378,5.03329891,1801.7,1801.6,10.43874202]
[1745683478597,4.721,1801.7,1801.6,11.73391261]
[1745683478796,4.721,1801.7,1801.6,12.14508896]
[1745683481183,4.721,1801.7,1801.6,11.73391261]
[1745683481390,4.721,1801.7,1801.6,5.55062166]
[1745683488331,5.4975,1801.7,1801.6,5.55062166]
[1745683492024,5.4975,1801.7,1801.5,5.55073001]
[1745683493139,5.4975,1801.7,1801.5,5.55069639]
[1745683493438,5.4975,1801.7,1801.6,5.55062166]
[1745683493606,5.4975,1801.7,1801.5,5.55073985]
[1745683495633,5.4975,1801.7,1801.5,5.55070495]
[1745683495841,6.04725,1801.7,1801.4,0.00185567]
[1745683496227,6.04725,1801.7,1801.4,5.55305398]
[1745683499041,5.55087111,1801.6,1801.4,0.00185567]
[1745683499227,0.798,1801.5,1801.4,0.00185567]
[1745683501155,16.91125124,1801.7,1801.4,5.55287603]
[1745683501156,12.15875,1801.7,1801.4,5.55287603]
[1745683502054,12.15875,1801.7,1801.5,5.55089656]
[1745683502240,4.719,1801.6,1801.5,5.55076362]
[1745683502837,6.09,1801.7,1801.5,5.55076362]
[1745683502838,6.09,1801.7,1801.6,5.55062166]
[1745683503018,10.809,1801.7,1801.6,5.55062166]
[1745683503417,6.09,1801.7,1801.6,5.55062166]
[1745683503653,10.809,1801.7,1801.6,5.55062166]
[1745683505857,6.09,1801.7,1801.6,6.74207019]
[1745683506023,10.809,1801.7,1801.6,6.74207019]
[1745683506452,6.09,1801.7,1801.6,6.74207019]
[1745683506652,10.809,1801.7,1801.6,6.74207019]
[1745683508046,4.719,1801.7,1801.6,6.74207019]
[1745683516299,4.719,1801.7,1801.6,1.19144853]
[1745683516584,4.719,1801.7,1801.4,5.55298772]
[1745683516787,0.7568,1801.6,1801.4,5.55298772]
[1745683516940,0.7568,1801.6,1801.5,5.55092978]
[1745683517135,5.4758,1801.7,1801.5,5.55092978]
[1745683517334,6.02338,1801.7,1801.5,5.55092978]
[1745683517968,6.02338,1801.7,1801.4,5.55292635]
[1745683518634,6.02338,1801.7,1801.4,5.55285924]
[1745683521292,0.7913,1801.6,1801.4,5.55285924]
[1745683522607,0.7913,1801.6,1801.4,0.00185567]
[1745683523471,2.02014669,1801.6,1801.4,0.00185567]
[1745683524570,5.26658,1801.7,1801.4,6.36449219]
[1745683524776,5.26658,1801.7,1801.5,5.55077176]
[1745683526676,5.26658,1801.7,1801.4,6.36433931]
[1745683526877,5.26658,1801.7,1801.4,11.91542295]
[1745683527908,5.26658,1801.7,1801.5,5.55090982]
[1745683529209,4.719,1801.7,1801.5,5.55090982]
[1745683530116,4.719,1801.7,1801.5,5.55070371]
[1745683530281,4.719,1801.7,1801.6,5.55062166]
[1745683530983,6.09,1801.8,1801.7,5.55031359]
[1745683531201,10.807,1801.8,1801.7,5.55031359]
[1745683531506,16.667,1801.9,1801.8,5.55000555]
[1745683531688,21.384,1801.9,1801.8,5.55000555]
[1745683531876,21.384,1801.9,1801.7,5.55002801]
[1745683532310,21.384,1801.9,1801.8,5.55000555]
[1745683533487,21.384,1801.9,1801.7,5.55018673]
[1745683534114,21.384,1801.9,1801.6,5.55041823]
[1745683534321,22.1585,1801.9,1801.6,5.55041823]
[1745683534615,22.1585,1801.9,1801.7,5.5501992]
[1745683538626,22.1585,1801.9,1801.6,5.55041823]
[1745683538803,17.4415,1801.9,1801.7,5.55026582]
[1745683539009,4.716,1801.8,1801.7,5.55026582]
[1745683539825,4.716,1801.8,1801.6,11.1009245]
[1745683540116,4.716,1801.8,1801.7,5.55031359]
[1745683540625,0.8217,1801.7,1801.4,5.55307735]
[1745683541605,0.8217,1801.7,1801.4,0.00185567]
[1745683541805,6.37201749,1801.7,1801.4,0.00185567]
[1745683542005,0.8217,1801.7,1801.4,0.00185567]
[1745683542610,0.8217,1801.7,1801.4,5.55308504]
[1745683542909,0.8217,1801.7,1801.4,0.00185567]
[1745683543109,2.53949315,1801.7,1801.4,0.00185567]
[1745683543925,2.53949315,1801.7,1801.4,5.55302914]
[1745683545330,4.714,1801.6,1801.4,5.55302914]
[1745683550532,6.37662978,1801.5,1801.4,0.00185567]
[1745683550840,7.0566876,1801.5,1801.4,0.00185567]
[1745683551039,13.1466876,1801.5,1801.4,0.00185567]
[1745683552619,18.9946876,1801.5,1801.4,0.00185567]
[1745683552939,13.1466876,1801.5,1801.4,0.00185567]
[1745683554621,13.56279399,1801.5,1801.4,0.00185567]
[1745683554931,13.58279399,1801.5,1801.4,0.00185567]
[1745683555417,13.58279399,1801.5,1801.1,0.04252805]
[1745683555418,6.33435431,1801.2,1801.1,0.04252805]
[1745683555619,20.83941213,1801.2,1801.1,0.04252805]
[1745683558544,14.66185431,1801.2,1801.1,0.04252805]
[1745683558725,16.37685431,1801.2,1801.1,0.04252805]
[1745683559748,10.825,1801.2,1801.1,0.04252805]
[1745683561445,16.37685431,1801.2,1801.1,0.04252805]
[1745683561622,10.825,1801.2,1801.1,0.04252805]
[1745683562019,6.11,1801.2,1801.1,0.04252805]
[1745683562363,10.826,1801.2,1801.1,6.37669061]
[1745683562523,10.826,1801.2,1801.1,7.56958512]
[1745683562724,6.11,1801.5,1801.3,5.55152098]
[1745683562937,4.716,1801.4,1801.3,5.55152098]
[1745683563624,4.716,1801.4,1801.2,5.551681]
[1745683564354,6.79005782,1801.7,1801.3,5.55132059]
[1745683564555,4.716,1801.6,1801.3,5.55132059]
[1745683564742,4.716,1801.6,1801.4,5.55121525]
[1745683565256,4.716,1801.6,1801.3,5.55136788]
[1745683565822,4.716,1801.6,1801.1,6.37657452]
[1745683566054,4.716,1801.6,1801.1,6.37668662]
[1745683566055,6.33362692,1801.5,1801.1,6.37668662]
[1745683566366,7.43858961,1801.5,1801.1,6.37668662]
[1745683566852,1.88746269,1801.5,1801.1,6.37668662]
[1745683567961,1.88746269,1801.5,1801.2,5.55181461]
[1745683568758,1.88746269,1801.5,1801.1,6.37646955]
[1745683569057,1.88746269,1801.5,1801.1,6.37645625]
[1745683569259,1.88746269,1801.5,1801.2,5.55180319]
[1745683569459,7.99746269,1801.5,1801.2,5.55180319]
[1745683571252,7.99746269,1801.5,1801.1,6.37652807]
[1745683571431,7.99746269,1801.5,1801.1,11.92846932]
[1745683572562,7.99746269,1801.5,1801.2,5.55180538]
[1745683573166,7.99746269,1801.5,1801.2,5.55161692]
[1745683573462,23.5595,1801.9,1801.6,5.55041534]
[1745683573630,23.5595,1801.9,1801.7,5.5501524]
[1745683573631,4.713,1801.8,1801.7,5.5501524]
[1745683573959,4.713,1801.8,1801.6,5.55046979]
[1745683575263,4.713,1801.8,1801.5,5.55084086]
[1745683576157,10.26306728,1801.8,1801.4,6.33306389]
[1745683576462,10.26302801,1801.8,1801.4,6.3330555]
[1745683576662,4.713,1801.8,1801.4,6.3330555]
[1745683576966,4.713,1801.8,1801.5,5.55088563]
[1745683577167,0.4713,1801.7,1801.5,5.55088563]
[1745683577366,0.4713,1801.7,1801.4,6.33306805]
[1745683577868,0.4713,1801.7,1801.4,11.88412832]
[1745683578032,4.713,1801.8,1801.4,11.88412832]
[1745683578235,4.713,1801.8,1801.5,5.55090661]
[1745683579155,4.713,1801.8,1801.4,6.33305461]
[1745683579749,4.713,1801.8,1801.4,11.88407329]
[1745683580070,4.713,1801.8,1801.4,6.33301868]
[1745683581173,10.94318114,1801.8,1801.4,6.33321246]
[1745683582477,5.39305782,1801.8,1801.4,11.88424788]
[1745683582639,5.39305782,1801.8,1801.5,5.5509146]
[1745683583376,5.39305782,1801.8,1801.5,5.5507959]
[1745683584067,5.39305782,1801.8,1801.5,5.55072209]
[1745683584275,4.713,1801.8,1801.5,5.55092978]
[1745683584874,4.713,1801.8,1801.6,5.55051161]
[1745683585782,4.713,1801.8,1801.7,5.55031359]
[1745683586081,22.777,1801.9,1801.8,5.55000555]
[1745683586277,27.49,1801.9,1801.8,5.55000555]
[1745683587775,21.38,1801.9,1801.8,5.55000555]
[1745683588943,21.38,1801.9,1801.8,6.37320555]
[1745683589144,21.38,1801.9,1801.8,7.56555746]
[1745683596496,21.38,1801.9,1801.6,6.92875092]
[1745683596788,21.38,1801.9,1801.6,11.92412236]
[1745683596948,21.38,1801.9,1801.7,5.55025464]
[1745683597995,21.38,1801.9,1801.7,5.55009067]
[1745683599266,21.38,1801.9,1801.7,5.55008933]
[1745683600308,21.38,1801.9,1801.8,5.55000555]
[1745683600477,21.38,1801.9,1801.8,6.66001504]
[1745683600800,21.38,1801.9,1801.8,7.41821504]
[1745683603681,4.713,1801.9,1801.8,7.41821504]
[1745683606205,4.713,1801.9,1801.8,10.41821504]
[1745683614180,4.713,1801.9,1801.8,9.66001504]
[1745683615697,4.713,1801.9,1801.8,10.47101504]
[1745683617728,16.666,1802.3,1802.2,5.54877372]
[1745683618010,21.375,1802.3,1802.2,5.54877372]
[1745683619815,21.375,1802.3,1802.1,5.54892938]
[1745683621211,21.375,1802.3,1802.1,5.5488456]
[1745683621848,21.375,1802.3,1802.2,5.54877372]
[1745683623133,21.375,1802.3,1802.1,5.54896754]
[1745683623829,21.375,1802.3,1802.0,5.54915148]
[1745683624056,21.375,1802.3,1802.1,5.54907831]
[1745683624422,0.8164,1802.2,1802.0,5.54919006]
[1745683624623,0.8164,1802.2,1802.0,11.09836748]
[1745683624823,0.8164,1802.2,1802.1,5.54908162]
[1745683625955,21.375,1802.3,1802.1,5.54888541]
[1745683626332,21.375,1802.3,1802.0,5.54917709]
[1745683626543,21.375,1802.3,1802.1,5.54898863]
[1745683628151,23.59414,1802.3,1802.0,5.54927034]
[1745683628338,21.375,1802.3,1802.0,5.54927034]
[1745683628544,4.709,1802.3,1802.0,5.54927034]
[1745683628839,0.8164,1802.2,1802.0,5.54927034]
[1745683630053,5.5254,1802.3,1802.0,11.09841256]
[1745683630355,5.5254,1802.3,1802.0,5.54914222]
[1745683630656,6.14594578,1802.3,1801.7,6.34897987]
[1745683630843,0.8164,1802.0,1801.7,5.55027987]
[1745683631053,4.709,1801.9,1801.7,5.55027987]
[1745683631844,4.709,1801.9,1801.5,5.5507741]
[1745683632165,4.709,1801.9,1801.6,5.55049055]
[1745683637582,4.709,1801.9,1801.7,5.55030276]
[1745683638280,4.709,1801.9,1801.7,5.55017225]
[1745683638447,4.709,1801.9,1801.6,5.55045368]
[1745683638647,4.709,1801.9,1801.7,5.55013659]
[1745683639085,4.709,1801.9,1801.8,5.55000555]
[1745683642502,4.709,1801.9,1801.8,6.73515393]
[1745683644665,4.709,1801.9,1801.8,5.55000555]
[1745683648191,4.709,1801.9,1801.3,0.8206]
[1745683648396,4.709,1801.9,1801.3,5.55144089]
[1745683648397,6.37275077,1801.8,1801.3,5.55144089]
[1745683648580,6.23090151,1801.6,1801.1,0.04252805]
[1745683648786,10.25918276,1801.5,1801.1,0.04252805]
[1745683648980,7.39998612,1801.4,1801.1,0.04252805]
[1745683649197,0.8226,1801.2,1801.1,0.04252805]
[1745683661398,6.37445431,1801.2,1801.1,0.04252805]
[1745683661615,13.12891213,1801.2,1801.1,0.04252805]
[1745683667021,29.80191213,1801.2,1801.1,0.04252805]
[1745683667352,31.1538552,1801.2,1801.1,0.04252805]
[1745683671963,35.8628552,1801.2,1801.1,0.04252805]